bitfinex/quotes_ETHUSD_20230702
["timestamp","ask_amount","ask_price","bid_price","bid_amount"]
[1688269358695,13.04750095,1916.6,1916.4,0.40999411]
[1688269358926,14.60635105,1916.6,1915.9,6.83662133]
[1688269359147,14.77070095,1916.6,1916.0,6.49052785]
[1688269359303,14.77070095,1916.6,1916.1,8.21878]
[1688269359497,14.77070095,1916.6,1916.2,0.48]
[1688269360430,14.77070095,1916.6,1916.2,5.69865]
[1688269360838,14.77070095,1916.6,1916.2,10.91731]
[1688269361026,14.77070095,1916.6,1916.2,11.73331]
[1688269361197,14.76712,1916.6,1916.2,13.73633818]
[1688269362334,14.76712,1916.6,1916.2,12.92033818]
[1688269365957,12.15834,1916.6,1916.2,12.92033818]
[1688269366868,12.15834,1916.6,1916.2,3.29602818]
[1688269366869,1.7232,1916.6,1916.2,3.29602818]
[1688269367067,12.15834,1916.6,1916.2,14.33964]
[1688269367450,6.94077,1916.6,1916.2,14.33964]
[1688269367671,5.21757,1916.6,1916.2,14.33964]
[1688269367837,12.97588,1916.7,1916.2,14.33964]
[1688269368038,12.97588,1916.7,1916.3,2.249964]
[1688269368245,0.00358524,1916.6,1916.4,5.69806]
[1688269368564,5.22119524,1916.6,1916.4,5.69806]
[1688269370465,0.00358524,1916.6,1916.4,5.69806]
[1688269371272,12.97591,1916.7,1916.4,5.69806]
[1688269371479,12.97591,1916.7,1916.4,7.0143864]
[1688269372381,0.00358524,1916.6,1916.4,7.0143864]
[1688269373147,12.97591,1916.7,1916.4,7.0143864]
[1688269374304,1.8123,1916.9,1916.4,17.52906824]
[1688269374305,0.00358524,1916.6,1916.4,17.52906824]
[1688269374464,0.00358524,1916.6,1916.5,13.00558682]
[1688269374661,0.00358524,1916.6,1916.5,13.48558682]
[1688269374861,0.00358524,1916.6,1916.5,18.78202866]
[1688269375061,0.00358524,1916.6,1916.5,19.04976837]
[1688269375269,2.4621,1917.1,1916.5,20.68596837]
[1688269375270,7.67852,1917.1,1916.5,20.68596837]
[1688269375486,7.67852,1917.1,1916.6,4.65181423]
[1688269375687,12.89497,1917.1,1916.8,0.817]
[1688269375984,12.89497,1917.1,1916.9,0.48]
[1688269376157,0.00348098,1917.0,1916.9,0.48]
[1688269376490,5.21996098,1917.0,1916.9,0.48]
[1688269376862,5.21996098,1917.0,1916.9,1.131402]
[1688269377060,0.00348098,1917.0,1916.9,1.131402]
[1688269377448,0.00348098,1917.0,1916.9,7.160152]
[1688269377647,0.00348098,1917.0,1916.9,1.943402]
[1688269380086,0.00348098,1917.0,1916.9,7.160152]
[1688269380389,0.00348098,1917.0,1916.9,6.348152]
[1688269381990,0.00348098,1917.0,1916.9,1.131402]
[1688269382208,5.21996098,1917.0,1916.9,0.48]
[1688269382528,5.21996098,1917.0,1916.8,0.48]
[1688269382803,10.43644098,1917.0,1916.8,0.48]
[1688269382981,10.43644098,1917.0,1916.7,0.90423261]
[1688269383858,13.04468098,1917.0,1916.7,0.90423261]
[1688269384663,13.04468098,1917.0,1916.7,6.12150261]
[1688269384856,10.43644098,1917.0,1916.7,6.12150261]
[1688269385051,10.43644098,1917.0,1916.7,7.75417329]
[1688269385701,5.21996098,1917.0,1916.7,7.75417329]
[1688269387459,4.96996098,1917.0,1916.7,7.75417329]
[1688269388362,0.00332732,1916.9,1916.7,7.75417329]
[1688269388757,0.00332732,1916.9,1916.7,2.53690329]
[1688269388963,5.22013732,1916.9,1916.7,0.90423261]
[1688269389193,10.43694732,1916.9,1916.5,3.0]
[1688269389402,13.04531732,1916.9,1916.3,8.2182]
[1688269389702,13.04531732,1916.9,1916.3,10.90572184]
[1688269389703,14.75175,1916.8,1916.3,10.90572184]
[1688269389862,17.36026,1916.8,1916.3,10.08926736]
[1688269390202,0.0033191,1916.7,1916.3,15.30764736]
[1688269390358,5.21762,1916.6,1916.3,15.30764736]
[1688269391298,0.00330156,1916.5,1916.3,17.91683736]
[1688269392266,5.21765,1916.6,1916.3,17.91683736]
[1688269393281,5.21765,1916.6,1916.4,1.36613185]
[1688269393479,5.21765,1916.6,1916.5,5.21784]
[1688269395393,5.22095483,1916.6,1916.5,5.21784]
[1688269395600,0.00330483,1916.6,1916.5,5.21784]
[1688269396299,10.43481,1916.7,1916.5,5.21784]
[1688269397295,0.00330483,1916.6,1916.5,5.21784]
[1688269398072,0.00330483,1916.6,1916.5,14.64599703]
[1688269398300,2.4364,1916.8,1916.5,17.73491703]
[1688269398493,2.4364,1916.8,1916.6,10.91486]
[1688269399110,5.21693,1916.9,1916.6,10.91486]
[1688269399415,0.00331529,1916.7,1916.6,10.91486]
[1688269399598,0.00331529,1916.7,1916.6,12.62926402]
[1688269400410,9.50451,1917.2,1916.6,18.74256586]
[1688269400630,5.21621,1917.1,1916.7,2.68752184]
[1688269400774,5.21621,1917.1,1916.8,5.69697]
[1688269401176,0.00333609,1917.0,1916.8,5.69697]
[1688269401496,5.21984609,1917.0,1916.8,1.84016318]
[1688269403201,10.43635609,1917.0,1916.8,1.84016318]
[1688269403800,5.21984609,1917.0,1916.8,1.84016318]
[1688269405698,10.43632609,1917.0,1916.8,1.84016318]
[1688269406033,10.43632609,1917.0,1916.8,0.48]
[1688269406239,10.43632609,1917.0,1916.7,0.48]
[1688269406532,14.88916609,1917.0,1916.4,2.4337]
[1688269406717,2.4825,1916.9,1916.4,3.50152184]
[1688269407028,10.43419,1916.8,1916.4,6.06826218]
[1688269407204,13.04602406,1916.8,1916.4,0.85015218]
[1688269407408,13.04602406,1916.8,1916.4,0.42084283]
[1688269407616,13.04602406,1916.8,1916.3,8.21838]
[1688269409397,13.04602406,1916.8,1916.3,13.43676]
[1688269410310,13.0427,1916.8,1916.3,13.43676]
[1688269411004,13.0427,1916.8,1916.3,13.84811233]
[1688269411209,0.00331909,1916.7,1916.4,1.38481123]
[1688269411420,5.21757,1916.6,1916.4,6.60274123]
[1688269412291,0.00330155,1916.5,1916.4,11.82085123]
[1688269413315,0.00330155,1916.5,1916.3,0.41135233]
[1688269413640,10.43898155,1916.5,1916.1,8.2189]
[1688269413937,12.96318155,1916.5,1916.1,8.21884]
[1688269414436,2.52750155,1916.5,1916.1,16.04723]
[1688269414628,2.52750155,1916.5,1916.3,10.43676]
[1688269416009,2.52750155,1916.5,1916.3,13.04595]
[1688269416208,2.52750155,1916.5,1916.3,10.43676]
[1688269416544,2.52750155,1916.5,1916.3,13.04595]
[1688269418044,2.52750155,1916.5,1916.3,10.43676]
[1688269418246,7.74536155,1916.5,1916.3,10.43676]
[1688269418818,7.74536155,1916.5,1916.3,5.21838]
[1688269423242,12.95992,1916.5,1916.3,5.21838]
[1688269423655,12.95992,1916.5,1916.2,6.823233]
[1688269424212,0.00329277,1916.4,1916.2,6.823233]
[1688269424464,5.22156277,1916.4,1916.2,6.823233]
[1688269425554,5.22156277,1916.4,1916.2,12.041893]
[1688269426245,5.22156277,1916.4,1916.3,1.2041893]
[1688269426457,5.22156277,1916.4,1916.2,10.43717]
[1688269426745,5.22156277,1916.4,1916.2,10.8628943]
[1688269432120,10.43983277,1916.4,1916.2,0.4257243]
[1688269432449,13.04888277,1916.4,1916.0,3.0]
[1688269432851,13.04888277,1916.4,1915.8,14.25526]
[1688269433018,13.04888277,1916.4,1915.9,1.425526]
[1688269433214,13.04888277,1916.4,1915.7,6.73819217]
[1688269433215,13.86588277,1916.4,1915.7,8.16545246]
[1688269433451,13.86588277,1916.4,1915.7,9.49252184]
[1688269433661,13.86588277,1916.4,1915.7,15.94560232]
[1688269433662,13.04888277,1916.4,1915.7,15.94560232]
[1688269433818,13.04707,1916.2,1915.7,18.55561232]
[1688269434020,7.89408,1916.1,1915.9,5.21947]
[1688269434218,7.89408,1916.1,1915.9,1.091908]
[1688269434219,7.89734095,1916.1,1915.9,1.091908]
[1688269434820,13.11632095,1916.1,1915.9,1.091908]
[1688269435021,7.89734095,1916.1,1915.9,1.091908]
[1688269435931,7.89734095,1916.1,1915.9,6.311378]
[1688269436280,7.89734095,1916.1,1915.9,1.091908]
[1688269437022,13.11632095,1916.1,1915.9,1.091908]
[1688269437937,7.89734095,1916.1,1915.9,6.311348]
[1688269438135,7.89734095,1916.1,1915.9,6.311358]
[1688269439724,7.89734095,1916.1,1915.9,6.34613747]
[1688269439933,7.89734095,1916.1,1916.0,0.63461375]
[1688269440223,7.89734095,1916.1,1916.0,11.07301375]
[1688269440224,0.00326095,1916.1,1916.0,11.07301375]
[1688269440448,0.00326095,1916.1,1916.0,11.34075346]
[1688269440653,0.00326095,1916.1,1916.0,11.82075346]
[1688269441324,5.21845,1916.3,1916.0,6.60155346]
[1688269441525,5.21845,1916.3,1916.1,0.66015535]
[1688269441762,13.11056,1916.4,1916.1,0.66015535]
[1688269442065,5.21841,1916.3,1916.1,0.66015535]
[1688269442273,5.221694,1916.3,1916.1,0.66015535]
[1688269442460,10.440104,1916.3,1916.1,0.66015535]
[1688269445131,0.003284,1916.3,1916.1,0.66015535]
[1688269446032,5.221684,1916.3,1916.1,0.66015535]
[1688269447249,0.003284,1916.3,1916.1,0.66015535]
[1688269448284,2.6741,1916.4,1916.1,5.87898535]
[1688269448464,7.89225,1916.4,1916.2,0.58789854]
[1688269448631,10.43546,1916.6,1916.2,0.58789854]
[1688269448830,13.00046,1916.6,1916.2,0.58789854]
[1688269449390,0.00330155,1916.5,1916.2,0.58789854]
[1688269449681,5.22121155,1916.5,1916.2,0.58789854]
[1688269451613,0.00330155,1916.5,1916.2,14.52857038]
[1688269451762,0.00330155,1916.5,1916.3,1.83453157]
[1688269452494,0.00076255,1916.5,1916.3,1.83453157]
[1688269453301,13.00036,1916.6,1916.3,1.83453157]
[1688269456869,7.78267,1916.6,1916.3,1.83453157]
[1688269457407,0.0032094,1916.5,1916.3,1.83453157]
[1688269458161,0.0032094,1916.5,1916.4,0.812]
[1688269458366,0.0032094,1916.5,1916.4,1.92661375]
[1688269458700,0.0032094,1916.5,1916.4,7.14472375]
[1688269458895,0.0032094,1916.5,1916.4,15.05035559]
[1688269459503,5.21733,1916.7,1916.4,15.05035559]
[1688269459809,5.21733,1916.7,1916.5,3.16752184]
[1688269459992,7.74009,1916.8,1916.6,0.31675218]
[1688269460176,2.5229,1916.8,1916.5,9.20228184]
[1688269460504,0.00320887,1916.6,1916.5,9.20228184]
[1688269460718,0.00320887,1916.6,1916.5,14.41612184]
[1688269461219,0.00320887,1916.6,1916.5,13.60312184]
[1688269461506,10.43434,1916.8,1916.5,14.85117573]
[1688269462505,0.00320663,1916.7,1916.5,14.85117573]
[1688269464382,0.00320663,1916.7,1916.5,15.66317573]
[1688269465113,0.00320663,1916.7,1916.5,14.85117573]
[1688269465318,5.21702,1916.8,1916.5,14.85117573]
[1688269465521,5.21702,1916.8,1916.6,1.35453157]
[1688269465816,5.21702,1916.8,1916.7,0.48]
[1688269466325,5.2202354,1916.8,1916.7,0.48]
[1688269471270,0.0032154,1916.8,1916.7,0.48]
[1688269472320,10.43373,1916.9,1916.7,0.48]
[1688269473316,0.0032154,1916.8,1916.7,0.48]
[1688269474184,10.43373,1916.9,1916.7,0.48]
[1688269475187,0.0032099,1916.8,1916.7,0.48]
[1688269475420,5.2202299,1916.8,1916.7,0.48]
[1688269477892,5.2202299,1916.8,1916.7,0.89480553]
[1688269480826,0.0032099,1916.8,1916.7,0.89480553]
[1688269480986,0.0032099,1916.8,1916.7,1.77478227]
[1688269481188,10.4337,1916.9,1916.7,1.77478227]
[1688269481384,10.4337,1916.9,1916.7,0.89480553]
[1688269482535,0.00320439,1916.8,1916.7,0.89480553]
[1688269483194,10.4337,1916.9,1916.7,0.89480553]
[1688269483743,5.21678,1916.9,1916.7,6.11207553]
[1688269484223,9.6765,1917.0,1916.7,0.89480553]
[1688269484224,7.06824,1917.0,1916.7,0.89480553]
[1688269484431,0.00319889,1916.8,1916.7,0.89480553]
[1688269484626,0.00319889,1916.8,1916.7,2.29652827]
[1688269484986,0.00319889,1916.8,1916.7,2.33130774]
[1688269485189,7.06824,1917.0,1916.7,2.33130774]
[1688269485384,12.28485,1917.0,1916.7,0.929585]
[1688269486189,0.00321316,1916.9,1916.7,0.929585]
[1688269486886,10.43671316,1916.9,1916.7,0.929585]
[1688269497562,5.21996316,1916.9,1916.7,0.929585]
[1688269500946,10.43671316,1916.9,1916.7,0.929585]
[1688269503049,10.43671316,1916.9,1916.7,0.449585]
[1688269503254,6.26069132,1916.8,1916.7,0.03477947]
[1688269503452,13.99901132,1916.8,1916.7,0.03477947]
[1688269503706,15.56385,1916.8,1916.7,0.03477947]
[1688269504253,15.56705439,1916.8,1916.7,0.03477947]
[1688269504690,17.40545439,1916.8,1916.7,7.947e-05]
[1688269504853,18.22245439,1916.8,1916.7,7.947e-05]
[1688269506550,26.39897623,1916.8,1916.7,7.947e-05]
[1688269506705,29.82142385,1916.8,1916.7,7.947e-05]
[1688269507266,29.83799212,1916.8,1916.7,7.947e-05]
[1688269509198,33.33799212,1916.8,1916.7,7.947e-05]
[1688269510814,27.84899212,1916.8,1916.7,7.947e-05]
[1688269511013,33.33799212,1916.8,1916.7,7.947e-05]
[1688269511181,25.16147028,1916.8,1916.7,7.947e-05]
[1688269515305,25.16147028,1916.8,1915.9,37.17751]
[1688269515508,0.813,1916.6,1916.0,0.48]
[1688269515704,13.04515,1916.5,1916.0,0.48]
[1688269515906,2.5729,1916.4,1916.0,0.48]
[1688269516105,10.43688,1916.3,1916.0,0.48]
[1688269516305,10.44004054,1916.3,1916.0,0.48]
[1688269516617,13.04923054,1916.3,1915.8,1.22521436]
[1688269516782,13.04923054,1916.3,1915.8,7.20611436]
[1688269516783,14.85093054,1916.3,1915.8,7.20611436]
[1688269517409,14.85093054,1916.3,1915.8,13.24286436]
[1688269519288,14.85093054,1916.3,1915.8,0.40821436]
[1688269519289,14.84777,1916.3,1915.8,0.40821436]
[1688269519619,10.43796,1916.1,1915.7,0.817]
[1688269520148,10.43796,1916.1,1915.7,11.25702]
[1688269520432,7.73906802,1916.0,1915.7,11.25702]
[1688269521047,2.51983802,1916.0,1915.7,11.25702]
[1688269521392,7.73905802,1916.0,1915.7,11.25702]
[1688269522453,7.73905802,1916.0,1915.7,7.76510423]
[1688269523838,7.73905802,1916.0,1915.8,0.812]
[1688269524699,2.51983802,1916.0,1915.8,0.812]
[1688269526206,7.73906802,1916.0,1915.8,0.812]
[1688269527015,12.95829802,1916.0,1915.7,6.03691]
[1688269527238,12.95829802,1916.0,1915.7,0.817]
[1688269527852,12.95829802,1916.0,1915.7,6.03701]
[1688269530943,12.95829802,1916.0,1915.7,7.50411423]
[1688269533341,12.96031661,1916.0,1915.7,7.50411423]
[1688269535355,12.96031661,1916.0,1915.7,6.03701]
[1688269536597,0.00515661,1916.0,1915.9,0.813]
[1688269537067,0.00515661,1916.0,1915.9,7.54007]
[1688269537266,2.60913,1916.4,1915.9,0.813]
[1688269537463,5.2192,1916.0,1915.7,5.21993]
[1688269537643,5.2192,1916.0,1915.7,6.60533123]
[1688269538250,0.00514794,1915.9,1915.7,6.60533123]
[1688269538567,0.00514794,1915.9,1915.8,0.817]
[1688269538883,0.00514794,1915.9,1915.8,6.03675]
[1688269539373,2.4862,1916.1,1915.8,6.03675]
[1688269539576,2.4862,1916.1,1915.9,0.811]
[1688269539938,10.43763,1916.2,1915.9,0.811]
[1688269540279,0.00515984,1916.1,1915.9,0.811]
[1688269540489,5.22411984,1916.1,1915.9,0.811]
[1688269541587,6.26841082,1916.1,1915.9,0.811]
[1688269541793,11.48737082,1916.1,1915.6,1.22789232]
[1688269542090,13.05253984,1916.1,1915.7,5.21989]
[1688269542296,13.05253984,1916.1,1915.7,6.03689]
[1688269542789,13.05253984,1916.1,1915.7,11.25691]
[1688269543488,13.05253984,1916.1,1915.7,5.21989]
[1688269543654,14.35779382,1916.1,1915.7,5.21989]
[1688269544054,14.35779382,1916.1,1915.6,11.66720232]
[1688269544259,14.35779382,1916.1,1915.7,0.816]
[1688269544459,2.4492,1916.0,1915.7,0.816]
[1688269544680,10.43894,1915.9,1915.7,6.03599]
[1688269545296,0.00513263,1915.8,1915.7,6.03599]
[1688269546278,10.43894,1915.9,1915.7,6.03599]
[1688269546696,2.4492,1916.0,1915.7,11.25601]
[1688269546991,2.4492,1916.0,1915.7,6.036]
[1688269546992,9.52251,1916.0,1915.7,6.036]
[1688269547191,9.52251,1916.0,1915.7,5.22]
[1688269547491,14.74172,1916.0,1915.7,5.22]
[1688269548370,14.74172,1916.0,1915.6,11.67020232]
[1688269548697,14.74172,1916.0,1915.7,0.48]
[1688269549502,5.2246425,1915.9,1915.7,0.48]
[1688269551823,5.2246425,1915.9,1915.7,5.69999]
[1688269553115,5.2246425,1915.9,1915.7,0.48]
[1688269556271,5.2246425,1915.9,1915.6,1.77587365]
[1688269556473,13.68352795,1915.9,1915.6,0.41389232]
[1688269556814,13.68352795,1915.9,1915.4,7.12735176]
[1688269557015,5.22002,1915.7,1915.5,6.12769353]
[1688269557174,10.44004,1915.7,1915.4,6.57780133]
[1688269557376,17.176832,1915.7,1915.3,0.54598133]
[1688269557605,17.176832,1915.7,1915.4,1.36495332]
[1688269557808,17.176832,1915.7,1915.2,1.90653176]
[1688269557980,17.176832,1915.7,1915.2,2.81038346]
[1688269558185,17.176832,1915.7,1915.2,1.90314801]
[1688269558389,1.72270288,1915.6,1915.2,0.54259758]
[1688269558593,13.05155,1915.5,1915.2,8.03217917]
[1688269558787,13.05155,1915.5,1915.2,1.48979468]
[1688269559002,13.05155,1915.5,1915.2,6.71109468]
[1688269559215,13.05155,1915.5,1915.2,5.2213]
[1688269559384,0.00500412,1915.4,1915.2,5.2213]
[1688269559706,5.22596412,1915.4,1915.2,5.2213]
[1688269560284,0.00500412,1915.4,1915.3,0.48]
[1688269560696,0.00500412,1915.4,1915.3,5.70111]
[1688269561120,0.00500412,1915.4,1915.3,0.48]
[1688269561513,5.22584412,1915.4,1915.3,0.48]
[1688269562733,0.00500412,1915.4,1915.3,5.70111]
[1688269564488,0.00500412,1915.4,1915.3,0.48]
[1688269567143,5.22584412,1915.4,1915.3,0.48]
[1688269568613,10.44668412,1915.4,1915.3,0.48]
[1688269568952,5.22584412,1915.4,1915.3,0.48]
[1688269573632,0.00500412,1915.4,1915.3,5.70111]
[1688269575381,5.22584412,1915.4,1915.3,0.48]
[1688269575991,0.00500412,1915.4,1915.3,5.70111]
[1688269576349,7.86541,1915.7,1915.3,12.096152]
[1688269576547,7.86541,1915.7,1915.3,10.92222]
[1688269576548,13.08556,1915.7,1915.3,10.92222]
[1688269576779,7.86541,1915.7,1915.3,13.60974184]
[1688269576978,7.86541,1915.7,1915.3,14.42674184]
[1688269577345,0.00513634,1915.6,1915.3,14.42674184]
[1688269577545,0.00513634,1915.6,1915.4,0.814]
[1688269577747,0.00513634,1915.6,1915.5,0.48]
[1688269578489,9.57875,1915.9,1915.5,14.42564184]
[1688269578490,2.5722,1915.9,1915.5,14.42564184]
[1688269578670,2.5722,1915.9,1915.6,0.814]
[1688269578871,2.5722,1915.9,1915.7,0.48]
[1688269579295,0.00514825,1915.8,1915.7,0.48]
[1688269579763,0.00514825,1915.8,1915.7,1.131411]
[1688269580087,0.00514825,1915.8,1915.7,7.168431]
[1688269580303,7.00606,1916.1,1915.7,7.168431]
[1688269580584,12.2251,1916.1,1915.7,6.51702]
[1688269581370,0.0051656,1916.0,1915.7,11.73704]
[1688269581575,0.0051656,1916.0,1915.7,6.51702]
[1688269581983,0.0051656,1916.0,1915.7,9.20454184]
[1688269582183,0.0051656,1916.0,1915.7,14.42456184]
[1688269582485,7.78939,1916.2,1915.7,15.9315579]
[1688269582720,13.00814,1916.2,1915.7,15.9315579]
[1688269582887,14.71014,1916.2,1915.7,15.9315579]
[1688269583365,5.22428565,1916.1,1915.7,15.9315579]
[1688269583567,0.00518565,1916.1,1915.7,15.9315579]
[1688269583755,5.22413565,1916.1,1915.8,6.81283579]
[1688269583954,5.22413565,1916.1,1915.9,0.48]
[1688269585093,0.00518565,1916.1,1915.9,0.48]
[1688269585389,7.78944,1916.2,1916.0,7.90672184]
[1688269585611,5.21855,1916.3,1916.1,0.48]
[1688269585772,2.60918,1916.4,1916.1,0.48]
[1688269585773,5.21824,1916.4,1916.1,0.48]
[1688269586307,0.00518121,1916.3,1916.1,0.48]
[1688269587173,5.22364121,1916.3,1916.1,0.48]
[1688269587379,5.21846,1916.3,1916.1,0.48]
[1688269588109,10.43649,1916.4,1916.1,0.48]
[1688269588285,0.00497439,1916.2,1916.1,0.48]
[1688269589021,0.00497439,1916.2,1916.1,5.69893]
[1688269589492,14.71143,1916.5,1916.1,7.14088318]
[1688269589694,14.71141,1916.5,1916.1,5.69893]
[1688269590311,0.00499192,1916.4,1916.1,5.69893]
[1688269590612,5.22311192,1916.4,1916.1,5.69893]
[1688269591185,0.00499192,1916.4,1916.1,5.69893]
[1688269593316,0.00499192,1916.4,1916.2,0.817]
[1688269593616,0.00499192,1916.4,1916.3,5.69838]
[1688269593787,0.00499192,1916.4,1916.3,10.91676]
[1688269593992,0.00499192,1916.4,1916.3,15.22564302]
[1688269594412,5.21738,1916.7,1916.3,15.22564302]
[1688269594614,10.43436,1916.8,1916.4,3.49952184]
[1688269594918,10.43436,1916.8,1916.5,0.48]
[1688269595287,0.00484152,1916.7,1916.3,1.62136118]
[1688269595513,0.00484152,1916.7,1916.0,10.43801]
[1688269595514,13.04447,1916.6,1916.0,10.43801]
[1688269595678,13.04447,1916.6,1916.1,3.11184861]
[1688269595880,13.04447,1916.6,1915.9,35.5993]
[1688269596085,13.0458,1916.4,1915.9,13.12610184]
[1688269596315,13.0458,1916.4,1916.0,6.53177018]
[1688269596680,13.0458,1916.4,1916.0,1.31261018]
[1688269596894,13.0458,1916.4,1915.9,8.32825984]
[1688269597292,0.00479429,1916.3,1916.0,0.48]
[1688269597499,5.21866,1916.2,1916.0,5.69919]
[1688269598618,5.21866,1916.2,1916.0,0.48]
[1688269599921,7.88366,1916.2,1916.0,0.48]
[1688269600781,7.88366,1916.2,1916.0,5.69917]
[1688269600985,7.88366,1916.2,1916.0,7.10191298]
[1688269602818,2.665,1916.2,1916.0,7.10191298]
[1688269603222,1.7417,1916.4,1916.0,15.27637453]
[1688269603425,0.00478239,1916.1,1916.0,15.27637453]
[1688269603718,0.00478239,1916.1,1916.0,16.09337453]
[1688269604269,4.2623,1916.4,1916.0,18.70297453]
[1688269604524,2.5206,1916.4,1916.1,2.64645623]
[1688269604829,2.5206,1916.4,1916.1,13.08404623]
[1688269605411,0.00479974,1916.3,1916.1,15.77156807]
[1688269605607,0.00479974,1916.3,1916.2,5.69866]
[1688269606406,5.21785,1916.5,1916.2,5.69866]
[1688269607011,9.61056,1916.6,1916.2,10.91732]
[1688269607216,4.3929,1916.6,1916.2,12.32006298]
[1688269607426,0.0048084,1916.4,1916.2,12.32006298]
[1688269607897,0.0048084,1916.4,1916.2,7.10140298]
[1688269608401,5.21784,1916.5,1916.2,7.10140298]
[1688269609030,10.43568,1916.5,1916.2,5.69866]
[1688269609411,0.00481008,1916.4,1916.2,5.69866]
[1688269612034,0.00481008,1916.4,1916.2,10.91732]
[1688269615422,14.82838,1916.6,1916.2,10.91732]
[1688269616543,0.00481331,1916.5,1916.2,10.91732]
[1688269616835,5.22268331,1916.5,1916.2,11.32939667]
[1688269620642,0.00481331,1916.5,1916.2,11.32939667]
[1688269621933,14.78319331,1916.6,1916.2,13.22381452]
[1688269622341,0.00462818,1916.5,1916.2,13.22381452]
[1688269622850,0.00462818,1916.5,1916.2,18.52066636]
[1688269625832,5.22249818,1916.5,1916.2,18.52066636]
[1688269626030,5.22249818,1916.5,1916.2,15.91133636]
[1688269627064,0.00462818,1916.5,1916.4,5.21811]
[1688269627228,0.00462818,1916.5,1916.4,8.38563184]
[1688269627424,0.00462818,1916.5,1916.4,3.16752184]
[1688269627953,5.22246818,1916.5,1916.4,3.16752184]
[1688269628158,10.44030818,1916.5,1916.2,0.41207667]
[1688269628362,10.44030818,1916.5,1916.1,5.21881]
[1688269628538,13.04922818,1916.5,1916.1,2.68752184]
[1688269628734,13.04922818,1916.5,1916.1,7.90636184]
[1688269628954,14.90892818,1916.5,1916.1,7.90636184]
[1688269629153,14.85892818,1916.5,1916.1,9.21890102]
[1688269629337,5.21838,1916.3,1916.1,9.21890102]
[1688269630141,5.21838,1916.3,1916.1,1.31253918]
[1688269630336,10.43676,1916.3,1916.0,10.43815]
[1688269630547,10.43676,1916.3,1916.0,10.8538713]
[1688269630749,13.04595,1916.3,1916.0,0.4157213]
[1688269630948,13.04595,1916.3,1915.8,10.9427909]
[1688269630949,13.04595,1916.3,1915.9,8.21945]
[1688269631154,12.94201,1916.2,1915.9,8.21935]
[1688269631363,13.05136417,1916.2,1915.7,30.38]
[1688269631546,5.21926,1916.0,1915.8,5.2197]
[1688269632250,0.00439103,1915.9,1915.8,10.43945]
[1688269633363,5.21926,1916.0,1915.8,10.43945]
[1688269634037,7.72348,1916.1,1915.8,10.43945]
[1688269634242,2.5044,1916.1,1915.8,16.00458155]
[1688269634429,2.5044,1916.1,1916.0,5.2192]
[1688269636366,1.8597,1916.2,1916.0,10.4384]
[1688269637133,2.4822,1916.3,1916.0,10.4384]
[1688269639672,2.4822,1916.3,1916.0,13.12592184]
[1688269639874,2.4822,1916.3,1916.1,1.31259218]
[1688269640077,2.4822,1916.3,1916.1,11.75012218]
[1688269640385,5.23453827,1916.5,1916.1,14.43764402]
[1688269640564,9.53037,1916.5,1916.1,14.43764402]
[1688269641366,0.00443607,1916.4,1916.1,14.43764402]
[1688269641563,0.00443607,1916.4,1916.2,1.4437644]
[1688269642144,5.22256607,1916.4,1916.2,1.4437644]
[1688269642644,10.44069607,1916.4,1916.2,1.4437644]
[1688269643256,5.22256607,1916.4,1916.2,1.4437644]
[1688269643470,0.00443607,1916.4,1916.2,4.13128624]
[1688269643658,0.00443607,1916.4,1916.2,7.90614184]
[1688269644172,0.00443607,1916.4,1916.2,13.12480184]
[1688269645843,5.22257607,1916.4,1916.2,7.90614184]
[1688269647460,10.44071607,1916.4,1916.1,5.21868]
[1688269647682,10.44071607,1916.4,1916.0,5.63969856]
[1688269647882,10.44071607,1916.4,1916.1,10.43782]
[1688269654352,13.04976607,1916.4,1915.8,4.36053985]
[1688269654705,0.817,1916.3,1915.7,30.38]
[1688269654853,13.04717,1916.2,1915.7,7.90743184]
[1688269655172,13.04717,1916.2,1915.7,13.12750184]
[1688269655173,2.5042,1916.1,1915.7,13.12750184]
[1688269655484,10.43852,1916.0,1915.7,7.90748184]
[1688269655682,10.43852,1916.0,1915.7,5.21996]
[1688269655984,13.04812,1916.0,1915.5,35.60051]
[1688269656159,14.90332,1916.0,1915.5,7.90803184]
[1688269656367,0.00438559,1915.9,1915.5,13.12859184]
[1688269656682,5.2198,1915.8,1915.5,13.54250388]
[1688269656855,10.4396,1915.8,1915.5,13.54250388]
[1688269657055,10.4396,1915.8,1915.5,3.10143388]
[1688269657272,13.04947,1915.8,1915.4,3.0]
[1688269657472,15.46977,1915.8,1915.5,0.90712775]
[1688269657676,12.8599,1915.8,1915.5,10.44102]
[1688269658090,15.46977,1915.8,1915.5,5.22046]
[1688269658288,0.00436823,1915.7,1915.5,5.22046]
[1688269658457,5.22442823,1915.7,1915.5,5.22046]
[1688269659297,10.44448823,1915.7,1915.5,5.22046]
[1688269659490,7.64017,1915.8,1915.5,10.44102]
[1688269659659,7.64017,1915.8,1915.5,13.0513]
[1688269659994,15.46979,1915.8,1915.4,5.22062]
[1688269660175,12.85992,1915.8,1915.5,5.22052]
[1688269660379,12.85992,1915.8,1915.4,10.44131]
[1688269660380,0.00436821,1915.7,1915.4,10.44131]
[1688269660584,10.44467821,1915.7,1915.4,11.92466211]
[1688269660975,5.22441821,1915.7,1915.4,11.92466211]
[1688269661375,5.22005,1915.7,1915.4,11.92466211]
[1688269661568,5.22005,1915.7,1915.4,14.53508211]
[1688269662370,5.22005,1915.7,1915.4,11.92466211]
[1688269664375,10.4401,1915.7,1915.4,6.70397211]
[1688269665208,10.4401,1915.7,1915.4,10.44146]
[1688269665502,10.4401,1915.7,1915.4,10.34146]
[1688269665893,10.4401,1915.7,1915.4,5.12062]
[1688269667015,13.05011,1915.7,1915.3,0.42100329]
[1688269667224,1.305011,1915.6,1915.2,8.22138]
[1688269667421,10.44124,1915.5,1915.2,8.64579071]
[1688269667631,13.05564,1915.5,1915.2,8.64579071]
[1688269667776,13.05152,1915.5,1915.2,5.64579071]
[1688269668182,13.05564,1915.5,1915.2,10.86717071]
[1688269668377,0.00425032,1915.4,1915.2,10.86717071]
[1688269668582,5.22516032,1915.4,1915.2,10.86717071]
[1688269668782,0.00425032,1915.4,1915.2,10.86717071]
[1688269670492,5.22511032,1915.4,1915.2,10.86717071]
[1688269671211,5.22509032,1915.4,1915.2,0.42453071]